{"text_format":"1","workbook":"xlsx","n_sheets":2,"sheets":["Blad1","Blad2"],"not_rendered":{"charts":0,"images":0,"macros":1,"external_links":0,"defined_names":1,"comments":0,"pivot_tables":1},"unopened":[],"bounds":{"document_bytes":16777216,"sheet_cells":100000,"rows_first":2000,"rows_last":500,"rows_between":2000,"halvings":0,"cell_chars":16384,"cell_head_chars":4096},"cells_cut":0,"cells_raw":0,"read":"whole","date_system":"1900"}

{"sheet":"Blad1","index":0,"n_rows":10,"n_cols":4,"rows_kept":10,"cut":false,"hidden":false,"merged":[]}
[]
[]
[]
[]
[null,null,null,"onderafdeling n"]
[]
[null,null,null,"Afdeling A2"]
[null,null,null,"Afdeling C3"]
[null,null,null,"onderafdeling m"]
[null,null,null,"Team 1"]

{"sheet":"Blad2","index":1,"n_rows":50,"n_cols":18,"rows_kept":50,"cut":false,"hidden":false,"merged":[]}
[null,"Bedrijf","Afdeling","O Afdeling","T",null,null,"Bedrijf","Afdeling","O Afdeling","T",null,null,"MyVal",null,null,"•","alt 7"]
[null,"Bedrijf A","Afdeling A1","Onderafdeling a","Team 1",null,null,"Bedrijf A",null,null,null,null,null,{"$f":"IF(H2<>\"\",H2,IF(I2<>\"\",\"    • \"&I2,IF(J2<>\"\",\"          ~ \"&J2,IF(K2<>\"\",\"               - \"&K2))))","v":"Bedrijf A"},null,null,"~","Alt 126"]
[null,"Bedrijf A","Afdeling A1","Onderafdeling a","Team 2",null,null,null,"Afdeling A1",null,null,null,null,{"$f":"IF(H3<>\"\",H3,IF(I3<>\"\",\"    • \"&I3,IF(J3<>\"\",\"          ~ \"&J3,IF(K3<>\"\",\"               - \"&K3))))","v":"    • Afdeling A1"},null,null,"-","Alt 45"]
[null,"Bedrijf A","Afdeling A1","onderafdeling b","Team 3",null,null,null,null,"Onderafdeling a",null,null,null,"          ~ Onderafdeling a"]
[null,"Bedrijf A","Afdeling A1","onderafdeling b","Team 4",null,null,null,null,null,"Team 1",null,null,"               - Team 1"]
[null,"Bedrijf A","Afdeling A2","onderafdeling c","",null,null,null,null,null,"Team 2",null,null,{"$f":"IF(H6<>\"\",H6,IF(I6<>\"\",\"    • \"&I6,IF(J6<>\"\",\"          ~ \"&J6,IF(K6<>\"\",\"               - \"&K6))))","v":"               - Team 2"}]
[null,"Bedrijf A","Afdeling A2","onderafdeling d","",null,null,null,null,"onderafdeling b",null,null,null,{"$f":"IF(H7<>\"\",H7,IF(I7<>\"\",\"    • \"&I7,IF(J7<>\"\",\"          ~ \"&J7,IF(K7<>\"\",\"               - \"&K7))))","v":"          ~ onderafdeling b"}]
[null,"Bedrijf A","Afdeling A2","onderafdeling e","",null,null,null,null,null,"Team 3",null,null,"               - Team 3"]
[null,"Bedrijf A","Afdeling A3","onderafdeling f","",null,null,null,null,null,"Team 4",null,null,"               - Team 4"]
[null,"Bedrijf B","Afdeling B1","onderafdeling g","",null,null,null,"Afdeling A2",null,null,null,null,"    • Afdeling A2"]
[null,"Bedrijf B","Afdeling B1","onderafdeling h","",null,null,null,null,"onderafdeling c",null,null,null,"          ~ onderafdeling c"]
[null,"Bedrijf B","Afdeling B1","onderafdeling i","",null,null,null,null,"onderafdeling d",null,null,null,"          ~ onderafdeling d"]
[null,"Bedrijf B","Afdeling B2",null,"",null,null,null,null,"onderafdeling e",null,null,null,"          ~ onderafdeling e"]
[null,"Bedrijf C","Afdeling C1","onderafdeling j","",null,null,null,"Afdeling A3",null,null,null,null,"    • Afdeling A3"]
[null,"Bedrijf C","Afdeling C1","onderafdeling k","",null,null,null,null,"onderafdeling f",null,null,null,"          ~ onderafdeling f"]
[null,"Bedrijf C","Afdeling C2","onderafdeling l","",null,null,"Bedrijf B",null,null,null,null,null,"Bedrijf B"]
[null,"Bedrijf C","Afdeling C2","onderafdeling m","",null,null,null,"Afdeling B1",null,null,null,null,"    • Afdeling B1"]
[null,"Bedrijf C","Afdeling C3","onderafdeling n","",null,null,null,null,"onderafdeling g",null,null,null,"          ~ onderafdeling g"]
[null,"Bedrijf C","Afdeling C3","onderafdeling o","",null,null,null,null,"onderafdeling h",null,null,null,"          ~ onderafdeling h"]
[null,null,null,null,null,null,null,null,null,"onderafdeling i",null,null,null,"          ~ onderafdeling i"]
[null,null,null,null,null,null,null,null,"Afdeling B2",null,null,null,null,"    • Afdeling B2"]
[null,null,null,null,null,null,null,"Bedrijf C",null,null,null,null,null,"Bedrijf C"]
[null,null,null,null,null,null,null,null,"Afdeling C1",null,null,null,null,"    • Afdeling C1"]
[null,null,null,null,null,null,null,null,null,"onderafdeling j",null,null,null,"          ~ onderafdeling j"]
[null,null,null,null,null,null,null,null,null,"onderafdeling k",null,null,null,"          ~ onderafdeling k"]
[null,null,null,null,null,null,null,null,"Afdeling C2",null,null,null,null,"    • Afdeling C2"]
[null,null,null,null," ",null,null,null,null,"onderafdeling l",null,null,null,"          ~ onderafdeling l"]
[null,null,null,null,null,null,null,null,null,"onderafdeling m",null,null,null,"          ~ onderafdeling m"]
[null,null,null,null,null,null,null,null,"Afdeling C3",null,null,null,null,"    • Afdeling C3"]
[null,null,null,null,null,null,null,null,null,"onderafdeling n",null,null,null,"          ~ onderafdeling n"]
[null,null,null,null,null,null,null,null,null,"onderafdeling o",null,null,null,"          ~ onderafdeling o"]
[null,null,null,null,null,null,null,null,null,null,null,null,null,false]
[null,null,null,null,null,null,null,null,null,null,null,null,null,false]
[null,null,null,null,null,null,null,null,null,null,null,null,null,false]
[null,null,null,null,null,null,null,null,null,null,null,null,null,false]
[null,null,null,null,null,null,null,null,null,null,null,null,null,false]
[null,null,null,null,null,null,null,null,null,null,null,null,null,false]
[null,null,null,null,null,null,null,null,null,null,null,null,null,false]
[null,null,null,null,null,null,null,null,null,null,null,null,null,false]
[null,null,null,null,null,null,null,null,null,null,null,null,null,false]
[null,null,null,null,null,null,null,null,null,null,null,null,null,false]
[null,null,null,null,null,null,null,null,null,null,null,null,null,false]
[null,null,null,null,null,null,null,null,null,null,null,null,null,false]
[null,null,null,null,null,null,null,null,null,null,null,null,null,false]
[null,null,null,null,null,null,null,null,null,null,null,null,null,false]
[null,null,null,null,null,null,null,null,null,null,null,null,null,false]
[null,null,null,null,null,null,null,null,null,null,null,null,null,false]
[null,null,null,null,null,null,null,null,null,null,null,null,null,false]
[null,null,null,null,null,null,null,null,null,null,null,null,null,false]
[null,null,null,null,null,null,null,null,null,null,null,null,null,false]